bitfinex-derivatives/quotes_SOLF0:USTF0_20240815
["timestamp","ask_amount","ask_price","bid_price","bid_amount"]
[1723730149265,1.3024,144.84,144.75,33.12]
[1723730149571,4.75846521,144.84,144.8,3.4527]
[1723730149769,3.4521,144.83,144.8,3.4527]
[1723730150475,0.04416004,144.83,144.8,0.0449409]
[1723730150964,0.04416004,144.83,144.81,3.4524]
[1723730151359,0.04416004,144.83,144.8,0.0449409]
[1723730151564,0.04416004,144.83,144.8,3.4976409]
[1723730151764,0.04416004,144.83,144.8,0.0449409]
[1723730152563,0.04416004,144.83,144.81,3.4525]
[1723730152961,0.04416004,144.83,144.8,0.0449409]
[1723730153162,0.04416004,144.83,144.8,3.4975409]
[1723730153970,3.49626004,144.83,144.8,3.4975409]
[1723730154163,0.04416004,144.83,144.8,0.0449409]
[1723730154571,3.49636004,144.83,144.8,3.4977409]
[1723730154969,0.04416004,144.83,144.8,3.4977409]
[1723730155968,3.49626004,144.83,144.8,3.4977409]
[1723730156371,0.04416004,144.83,144.81,3.4526]
[1723730156782,0.04416004,144.83,144.8,0.0449409]
[1723730157569,0.04416004,144.83,144.81,3.4525]
[1723730157779,0.04416004,144.83,144.8,0.0449409]
[1723730157976,0.04416004,144.83,144.82,3.4523]
[1723730159775,0.04416004,144.83,144.8,0.0449409]
[1723730160880,0.04416004,144.83,144.81,3.4526]
[1723730162084,0.04416004,144.83,144.82,3.4523]
[1723730164074,0.04416004,144.83,144.8,0.0449409]
[1723730164782,3.49626004,144.83,144.8,0.0449409]
[1723730164979,0.04416004,144.83,144.8,0.0449409]
[1723730167483,0.04416004,144.83,144.82,3.4523]
[1723730168083,0.04416004,144.83,144.81,3.4524]
[1723730168878,3.49646004,144.83,144.8,3.4976409]
[1723730169078,3.49646004,144.83,144.8,0.0449409]
[1723730169483,0.04416004,144.83,144.8,0.0449409]
[1723730169881,3.49636004,144.83,144.8,3.4976409]
[1723730170083,0.04416004,144.83,144.8,3.4976409]
[1723730170294,0.04416004,144.83,144.8,33.1649409]
[1723730170788,0.04416004,144.83,144.82,3.4523]
[1723730171189,0.04416004,144.83,144.8,0.0449409]
[1723730171586,0.04416004,144.83,144.8,3.4975409]
[1723730171791,0.04416004,144.83,144.8,0.0449409]
[1723730172278,0.04416004,144.83,144.81,3.4524]
[1723730172482,0.04416004,144.83,144.8,0.0449409]
[1723730172691,0.04416004,144.83,144.81,3.4524]
[1723730173389,0.04416004,144.83,144.82,3.4523]
[1723730175187,0.04416004,144.83,144.81,3.4525]
[1723730175394,0.04416004,144.83,144.8,0.0449409]
[1723730176292,0.04416004,144.83,144.8,3.58297424]
[1723730176493,0.04416004,144.83,144.82,3.4523]
[1723730182899,0.04416004,144.83,144.82,36.5723]
[1723730183804,0.04416004,144.83,144.82,40.08247707]
[1723730185109,72.88803366,144.93,144.82,33.12]
[1723730185299,5.62,144.93,144.87,33.12]
[1723730185504,3.4502,144.92,144.87,33.12]
[1723730185704,3.4502,144.92,144.88,3.4508]
[1723730186504,3.4502,144.92,144.89,3.4506]
[1723730186706,0.04970437,144.91,144.89,3.50194178]
[1723730187401,0.04970437,144.91,144.89,0.05134178]
[1723730188005,3.4504,144.9,144.89,0.05134178]
[1723730188207,0.04970437,144.91,144.84,5.62]
[1723730189203,3.4508,144.89,144.86,3.4514]
[1723730189603,3.4508,144.89,144.86,3.49621471]
[1723730189800,3.4509,144.88,144.86,0.04481471]
[1723730191111,3.4508,144.89,144.86,0.04481471]
[1723730191306,3.4508,144.89,144.86,3.49621471]
[1723730192105,3.4509,144.88,144.86,0.04481471]
[1723730192306,33.16970437,144.91,144.86,0.04481471]
[1723730192705,3.4511,144.88,144.86,0.04481471]
[1723730193209,3.4508,144.89,144.86,3.49621471]
[1723730193411,33.16970437,144.91,144.86,0.04481471]
[1723730193707,3.4508,144.89,144.86,0.04481471]
[1723730194115,33.12,144.89,144.86,0.04481471]
[1723730194310,33.12,144.87,144.78,38.74]
[1723730194512,33.12,144.87,144.78,42.23751484]
[1723730195512,0.05097529,144.84,144.81,0.04660687]
[1723730196116,0.05097529,144.84,144.83,3.4521]
[1723730197622,0.05097529,144.84,144.81,0.04660687]
[1723730197913,3.4523,144.83,144.81,0.04660687]
[1723730198114,0.05097529,144.84,144.81,0.04660687]
[1723730198619,3.4522,144.83,144.81,0.04660687]
[1723730198914,0.05097529,144.84,144.81,0.04660687]
[1723730199117,3.50307529,144.84,144.81,0.04660687]
[1723730199715,3.4522,144.83,144.81,0.04660687]
[1723730200114,0.05097529,144.84,144.81,0.04660687]
[1723730200313,3.4522,144.83,144.81,0.04660687]
[1723730200921,3.50297529,144.84,144.81,0.04660687]
[1723730201419,3.4522,144.83,144.81,0.04660687]
[1723730202009,3.4523,144.82,144.81,0.04660687]
[1723730202412,33.12,144.83,144.73,34.1571]
[1723730202612,3.9312,144.86,144.73,34.1571]
[1723730202613,33.12,144.81,144.73,33.12]
[1723730202813,1.2422,144.8,144.73,33.12]
[1723730203011,3.4534,144.78,144.75,3.4539]
[1723730203411,33.12,144.79,144.71,33.12]
[1723730203613,3.4536,144.77,144.73,3.4544]
[1723730203914,0.05051188,144.78,144.75,0.05188961]
[1723730204114,6.9016,144.89,144.75,0.05188961]
[1723730204115,2.5867,144.87,144.77,33.12]
[1723730204313,2.5867,144.87,144.8,33.12]
[1723730205319,3.452,144.84,144.82,0.04452444]
[1723730206120,3.4521,144.83,144.82,0.04452444]
[1723730207019,3.452,144.84,144.82,3.49672444]
[1723730207215,3.452,144.84,144.82,0.04452444]
[1723730207518,0.04870739,144.85,144.82,0.04452444]
[1723730209122,3.4521,144.84,144.82,0.04452444]
[1723730212019,0.04870739,144.85,144.82,0.04452444]
[1723730212221,38.74,144.84,144.75,3.38973142]
[1723730212424,1.2878,144.83,144.74,33.12]
[1723730212722,3.453,144.8,144.77,3.4535]
[1723730213317,3.453,144.8,144.77,3.50551901]
[1723730213522,3.5055758,144.8,144.77,3.50551901]
[1723730214019,3.5055758,144.8,144.78,3.4533]
[1723730214524,0.0525758,144.8,144.78,3.4533]
[1723730214923,3.5053758,144.8,144.78,3.4533]
[1723730215327,0.0525758,144.8,144.79,3.4531]
[1723730216619,0.0525758,144.8,144.77,0.05201901]
[1723730217322,0.0525758,144.8,144.78,3.4532]
[1723730218532,3.5053758,144.8,144.77,3.50541901]
[1723730218728,0.0525758,144.8,144.77,0.05201901]
[1723730220028,33.12,144.79,144.77,0.05201901]
[1723730220238,34.4849,144.79,144.77,0.05201901]
[1723730220533,40.1049,144.79,144.77,0.05201901]
[1723730220732,3.4533,144.78,144.77,0.05201901]
[1723730220933,33.12,144.78,144.72,3.4546]
[1723730221328,3.4539,144.76,144.69,33.12]
[1723730222035,33.12,144.78,144.69,33.12]
[1723730222234,33.12,144.78,144.73,3.4544]
[1723730222436,40.1049,144.79,144.72,3.39054488]
[1723730222631,0.04492008,144.74,144.71,33.12]
[1723730222938,0.04492008,144.74,144.73,3.4544]
[1723730223233,3.4534,144.78,144.73,3.46528497]
[1723730223434,3.4536,144.77,144.74,3.4541]
[1723730223832,0.04666634,144.75,144.74,3.4541]
[1723730225341,0.04666634,144.75,144.73,0.04643955]
[1723730225839,0.04666634,144.75,144.73,3.50083955]
[1723730226040,0.04666634,144.75,144.73,0.04643955]
[1723730226234,0.04666634,144.75,144.74,3.4543]
[1723730229138,0.04666634,144.75,144.73,3.50073955]
[1723730229641,0.04666634,144.75,144.73,0.04643955]
[1723730230041,0.04666634,144.75,144.74,3.4543]
[1723730230742,5.62,144.85,144.73,38.78643955]
[1723730230939,5.62,144.85,144.78,33.12]
[1723730231141,3.4521,144.83,144.79,3.4529]
[1723730231339,5.62,144.85,144.79,3.4529]
[1723730231543,3.4523,144.83,144.79,3.4529]
[1723730231942,3.4523,144.83,144.8,3.4528]
[1723730232144,0.05040719,144.82,144.8,0.0508467]
[1723730234742,3.4526,144.81,144.8,0.0508467]
[1723730235137,36.5726,144.81,144.8,0.0508467]
[1723730235353,33.12,144.81,144.7,33.12]
[1723730235643,39.45200213,144.8,144.7,38.74]
[1723730235843,39.45200213,144.8,144.74,3.4541]
[1723730235844,3.4537,144.77,144.74,3.4541]
[1723730236744,0.04869593,144.77,144.75,3.454]
[1723730237143,0.04869593,144.77,144.74,0.04899565]
[1723730237344,0.04869593,144.77,144.75,3.4539]
[1723730237744,0.04869593,144.77,144.74,3.50309565]
[1723730238045,0.04869593,144.77,144.74,0.04899565]
[1723730238547,3.4539,144.76,144.74,0.04899565]
[1723730238942,0.04869593,144.77,144.74,0.04899565]
[1723730239645,33.12,144.76,144.74,0.04899565]
[1723730240038,3.4548,144.72,144.69,3.4553]
[1723730240843,1.2743,144.75,144.66,38.74]
[1723730240844,3.455,144.71,144.66,38.74]
[1723730241047,3.455,144.71,144.66,5.62]
[1723730241243,33.12,144.74,144.68,3.4556]
[1723730241449,0.04901067,144.7,144.68,3.4556]
[1723730241950,0.04901067,144.7,144.69,3.4554]
[1723730242547,0.04901067,144.7,144.68,3.4556]
[1723730243345,0.04901067,144.7,144.67,36.62528951]
[1723730243549,0.04901067,144.7,144.67,33.16948951]
[1723730243746,0.04901067,144.7,144.68,3.4555]
[1723730244545,0.04901067,144.7,144.69,3.4554]
[1723730244741,0.04901067,144.7,144.67,33.16948951]
[1723730245149,0.04901067,144.7,144.68,3.4556]
[1723730245651,0.04901067,144.7,144.67,33.16948951]
[1723730245850,0.04901067,144.7,144.67,36.62528951]
[1723730246250,0.04901067,144.7,144.69,3.4554]
[1723730246844,0.04901067,144.7,144.69,36.5754]
[1723730247851,2.6024,144.79,144.69,33.12]
[1723730248150,8.2024,144.79,144.72,33.12]
[1723730248743,3.4536,144.77,144.72,33.12]
[1723730248943,3.49781369,144.77,144.74,0.04732036]
[1723730249148,0.04421369,144.77,144.74,0.04732036]
[1723730249541,0.04421369,144.77,144.74,3.50142036]
[1723730249745,0.04421369,144.77,144.74,0.04732036]
[1723730250148,0.04421369,144.77,144.74,3.50142036]
[1723730250551,3.49771369,144.77,144.74,3.50142036]
[1723730250748,0.04421369,144.77,144.74,0.04732036]
[1723730251146,3.4539,144.76,144.74,0.04732036]
[1723730251354,0.04421369,144.77,144.74,3.50152036]
[1723730251747,3.49791369,144.77,144.74,3.50152036]
[1723730252950,0.04421369,144.77,144.74,0.04732036]
[1723730254456,3.454,144.75,144.74,0.04732036]
[1723730254753,0.04421369,144.77,144.74,0.04732036]
[1723730256051,3.454,144.76,144.74,0.04732036]
[1723730256255,0.04421369,144.77,144.74,0.04732036]
[1723730256456,3.454,144.76,144.74,0.04732036]
[1723730256659,0.04421369,144.77,144.74,0.04732036]
[1723730256859,3.454,144.75,144.74,0.04732036]
[1723730260756,3.4547,144.73,144.7,3.4551]
[1723730261255,3.4548,144.72,144.68,33.12]
[1723730261456,3.4548,144.72,144.69,3.4553]
[1723730261854,3.4544,144.74,144.7,3.455]
[1723730262056,34.3737,144.76,144.7,3.455]
[1723730262263,0.05232031,144.72,144.7,3.455]
[1723730263864,0.05232031,144.72,144.69,0.05105068]
[1723730264359,0.05232031,144.72,144.7,3.4552]
[1723730264558,0.05232031,144.72,144.69,0.05105068]
[1723730264959,0.05232031,144.72,144.71,3.455]
[1723730265158,2.6024,144.79,144.71,36.4926155]
[1723730265358,3.4539,144.76,144.71,33.12]
[1723730265561,3.4539,144.76,144.73,3.4543]
[1723730266455,3.4539,144.76,144.74,3.4542]
[1723730266456,0.04556329,144.76,144.74,3.4542]
[1723730267159,0.04556329,144.76,144.75,3.454]
[1723730268451,0.04556329,144.76,144.74,3.4542]
[1723730268854,0.04556329,144.76,144.73,0.04963087]
[1723730269060,0.04556329,144.76,144.73,3.50393087]
[1723730269365,0.04556329,144.76,144.73,0.04963087]
[1723730269564,0.04556329,144.76,144.74,3.4541]
[1723730270168,0.04556329,144.76,144.73,3.50403087]
[1723730270558,3.49936329,144.76,144.73,3.50403087]
[1723730271258,3.49936329,144.76,144.74,3.4543]
[1723730271259,0.04556329,144.76,144.74,3.4543]
[1723730271659,0.04556329,144.76,144.73,0.04963087]
[1723730271855,0.04556329,144.76,144.74,3.4542]
[1723730272555,0.04556329,144.76,144.73,0.04963087]
[1723730272556,0.04556329,144.76,144.75,3.454]
[1723730277960,0.04556329,144.76,144.74,3.4541]
[1723730278167,0.04556329,144.76,144.73,0.04963087]
[1723730278768,0.04556329,144.76,144.74,3.4541]
[1723730279665,0.04556329,144.76,144.73,0.04963087]
[1723730280971,3.4543,144.74,144.73,0.04963087]
[1723730281168,0.04556329,144.76,144.73,0.04963087]
[1723730282265,3.49946329,144.76,144.73,3.50403087]
[1723730282773,0.04556329,144.76,144.73,0.04963087]
[1723730283464,0.04556329,144.76,144.74,3.4542]
[1723730284069,3.49936329,144.76,144.73,3.50403087]
[1723730284875,3.49936329,144.76,144.74,3.4542]
[1723730285069,3.49936329,144.76,144.73,0.04963087]
[1723730285270,0.04556329,144.76,144.73,0.04963087]
[1723730285781,0.04556329,144.76,144.74,33.12]
[1723730285966,0.04556329,144.76,144.75,3.454]
[1723730287880,0.04556329,144.76,144.73,0.04963087]
[1723730288374,0.04556329,144.76,144.74,3.4542]
[1723730288876,0.04556329,144.76,144.74,3.4541]
[1723730289772,0.04556329,144.76,144.73,0.04963087]
[1723730290273,0.04556329,144.76,144.75,36.574]
[1723730291469,5.58,144.83,144.78,3.4532]
[1723730291669,5.58,144.83,144.75,33.12]
[1723730291869,3.4527,144.81,144.75,33.12]
[1723730292077,5.05448263,144.8,144.77,3.4534]
[1723730292375,8.50778263,144.79,144.75,33.12]
[1723730292671,5.58,144.83,144.77,3.4535]
[1723730292980,0.04723068,144.79,144.77,3.4535]
[1723730293174,0.04723068,144.79,144.76,3.50514997]
[1723730293375,0.04723068,144.79,144.76,0.05144997]
[1723730294177,0.04723068,144.79,144.77,3.4534]
[1723730295473,0.04723068,144.79,144.76,0.05144997]
[1723730295971,3.4535,144.77,144.76,0.05144997]
[1723730296168,0.04723068,144.79,144.76,0.05144997]
[1723730296366,5.05501212,144.78,144.76,0.05144997]
[1723730296675,3.4534,144.78,144.76,0.05144997]
[1723730296978,1.27743068,144.79,144.76,0.05144997]
[1723730297170,8.50890156,144.78,144.76,0.05144997]
[1723730297375,0.04723068,144.79,144.76,0.05144997]
[1723730297873,0.04723068,144.79,144.77,3.4535]
[1723730299170,0.04723068,144.79,144.76,0.05144997]
[1723730299477,3.50033068,144.79,144.76,0.05144997]
[1723730299880,3.50033068,144.79,144.76,3.50504997]
[1723730301171,3.50033068,144.79,144.76,0.05144997]
[1723730301172,3.4533,144.78,144.76,0.05144997]
[1723730301980,0.04723068,144.79,144.76,0.05144997]
[1723730302576,5.05522921,144.78,144.76,0.05144997]
[1723730302777,3.4534,144.78,144.76,0.05144997]
[1723730303278,5.05512158,144.77,144.76,0.05144997]
[1723730303582,3.50043068,144.79,144.76,3.50514997]
[1723730303783,5.05488682,144.78,144.76,3.50514997]
[1723730304079,3.50043068,144.79,144.76,3.50514997]
[1723730304384,8.50816426,144.78,144.76,3.50514997]
[1723730304681,0.04723068,144.79,144.76,3.50514997]
[1723730304885,5.05492858,144.78,144.76,3.50514997]
[1723730305079,3.50043068,144.79,144.76,3.50514997]
[1723730305280,0.04723068,144.79,144.76,0.05144997]
[1723730305576,5.0546893,144.78,144.76,0.05144997]
[1723730305779,0.04723068,144.79,144.76,0.05144997]
[1723730305971,5.05478895,144.78,144.76,3.50524997]
[1723730306176,3.50043068,144.79,144.76,3.50524997]
[1723730306379,5.05485513,144.78,144.76,3.50524997]
[1723730306683,3.50043068,144.79,144.76,3.50524997]
[1723730306887,5.05504704,144.78,144.77,3.4535]
[1723730307485,5.05485519,144.78,144.76,3.50504997]
[1723730307672,3.50043068,144.79,144.76,3.50504997]
[1723730307983,5.05485217,144.78,144.76,0.05144997]
[1723730308180,0.04723068,144.79,144.76,0.05144997]
[1723730308382,5.05489048,144.78,144.76,0.05144997]
[1723730308579,0.04723068,144.79,144.76,0.05144997]
[1723730308776,5.05489048,144.78,144.76,0.05144997]
[1723730308980,0.04723068,144.79,144.76,0.05144997]
[1723730309181,5.05504704,144.78,144.76,0.05144997]
[1723730309381,0.04723068,144.79,144.76,0.05144997]
[1723730309582,5.05489349,144.78,144.76,0.05144997]
[1723730309782,0.04723068,144.79,144.76,0.05144997]
[1723730310678,0.04723068,144.79,144.77,3.4534]
[1723730311073,0.04723068,144.79,144.76,0.05144997]
[1723730311483,3.50043068,144.79,144.76,3.50514997]
[1723730311876,0.04723068,144.79,144.76,0.05144997]
[1723730312082,3.4534,144.78,144.76,0.05144997]
[1723730312481,3.50043068,144.79,144.76,3.50514997]
[1723730313077,0.04723068,144.79,144.77,3.4534]
[1723730314478,5.05452436,144.78,144.76,3.50504997]
[1723730314788,3.50033068,144.79,144.76,0.05144997]
[1723730315082,5.05452133,144.78,144.76,3.50504997]
[1723730315287,3.50033068,144.79,144.76,0.05144997]
[1723730315489,5.05448302,144.78,144.76,0.05144997]
[1723730315691,0.04723068,144.79,144.76,0.05144997]
[1723730315885,5.05447694,144.78,144.76,0.05144997]
[1723730316092,0.04723068,144.79,144.78,3.4533]
[1723730316490,5.10137124,144.79,144.78,3.4533]
[1723730316694,0.04723068,144.79,144.78,3.4533]
[1723730316887,1.344,144.87,144.77,33.12]
[1723730317190,3.5345222,144.89,144.76,5.61144997]
[1723730317191,5.05340866,144.86,144.83,33.12]
[1723730317390,5.05340866,144.85,144.83,33.12]
[1723730317585,3.451,144.88,144.84,3.4517]
[1723730317783,5.05241624,144.87,144.84,3.4517]
[1723730317981,5.05241624,144.86,144.83,33.12]
[1723730318284,3.50071397,144.87,144.84,3.5016225]
[1723730318483,5.05223157,144.86,144.84,3.5016225]
[1723730318690,5.05223157,144.85,144.84,3.5016225]
[1723730320392,0.04951397,144.87,144.84,3.5016225]
[1723730320686,5.05192251,144.86,144.84,0.0497225]
[1723730320885,5.05192251,144.85,144.84,0.0497225]
[1723730321186,3.4516,144.85,144.84,0.0497225]
[1723730321387,5.05192251,144.85,144.84,0.0497225]
[1723730321595,5.05192251,144.86,144.84,0.0497225]
[1723730321793,5.05192251,144.85,144.84,0.0497225]
[1723730322196,3.50081397,144.87,144.84,3.5016225]
[1723730322392,5.05243291,144.86,144.84,3.5016225]
[1723730322595,5.05243291,144.85,144.84,3.5016225]
[1723730322794,5.05231335,144.85,144.84,3.5016225]
[1723730323292,5.05231335,144.85,144.84,0.0497225]
[1723730323995,3.4515,144.86,144.84,0.0497225]
[1723730324184,5.05224436,144.85,144.84,0.0497225]
[1723730324389,38.17224436,144.85,144.74,1.3603]
[1723730324594,5.05224436,144.84,144.76,38.68]
[1723730324795,3.4522,144.83,144.79,3.4529]
[1723730324993,33.12,144.85,144.79,3.4529]
[1723730325290,3.4525,144.82,144.79,3.4529]
[1723730325791,3.50151196,144.82,144.79,3.50272093]
[1723730326187,0.04901196,144.82,144.79,3.50272093]
[1723730326393,0.04901196,144.82,144.79,0.04982093]
[1723730326886,0.04901196,144.82,144.8,3.4528]
[1723730327288,0.04901196,144.82,144.79,0.04982093]
[1723730327491,0.04901196,144.82,144.8,3.4528]
[1723730327690,3.50151196,144.82,144.79,0.04982093]
[1723730328293,0.04901196,144.82,144.79,0.04982093]
[1723730328699,3.4528,144.8,144.79,0.04982093]
[1723730329494,0.04901196,144.82,144.79,0.04982093]
[1723730329996,3.50151196,144.82,144.79,0.04982093]
[1723730330698,3.4526,144.81,144.79,0.04982093]
[1723730330894,0.04901196,144.82,144.79,0.04982093]
[1723730331295,3.4527,144.81,144.79,0.04982093]
[1723730331693,0.04901196,144.82,144.79,3.50282093]
[1723730331996,3.50151196,144.82,144.79,3.50282093]
[1723730332695,3.4526,144.81,144.79,3.50282093]
[1723730333199,0.04901196,144.82,144.8,3.4527]
[1723730334495,0.04901196,144.82,144.81,3.4526]
[1723730334898,0.04901196,144.82,144.79,0.04982093]
[1723730335097,0.04901196,144.82,144.8,3.4527]
[1723730336203,0.04901196,144.82,144.79,0.04982093]
[1723730338196,0.04901196,144.82,144.79,3.50272093]
[1723730338602,0.04901196,144.82,144.8,13.26]
[1723730339007,0.04901196,144.82,144.81,3.4526]
[1723730340101,0.04901196,144.82,144.8,16.7127]
[1723730340301,0.04901196,144.82,144.79,0.04982093]
[1723730340705,3.4527,144.81,144.79,3.50272093]
[1723730341496,3.4527,144.81,144.79,0.04982093]
[1723730342802,3.50141196,144.82,144.8,13.26]
[1723730343701,3.50141196,144.82,144.8,16.7128]
[1723730344105,0.04901196,144.82,144.8,16.7128]
[1723730344704,0.04901196,144.82,144.81,13.26]
[1723730345006,41.1586503,144.94,144.81,13.26]
[1723730345007,90.53716607,144.91,144.81,13.26]
[1723730345308,3.4512,144.87,144.84,16.7117]
[1723730345503,5.05208178,144.86,144.8,54.3731]
[1723730345695,1.3193,144.89,144.85,13.26]
[1723730345900,5.05127769,144.88,144.87,13.26]
[1723730346604,5.05127769,144.88,144.86,13.26]
[1723730346808,5.05127769,144.87,144.86,13.30368509]
[1723730347105,0.04770397,144.89,144.86,13.30368509]
[1723730347414,0.04770397,144.89,144.87,13.26]
[1723730347902,0.04770397,144.89,144.87,3.4512]
[1723730348103,0.04770397,144.89,144.86,0.04368509]
[1723730348306,0.04770397,144.89,144.86,3.49498509]
[1723730348307,5.05039849,144.88,144.86,3.49498509]
[1723730348503,3.49850397,144.89,144.86,3.49498509]
[1723730348698,5.0505916,144.88,144.86,3.49498509]
[1723730348908,3.49850397,144.89,144.86,3.49498509]
[1723730349112,8.50166782,144.88,144.86,0.04368509]
[1723730349299,0.04770397,144.89,144.74,5.54]
[1723730349300,38.16110102,144.87,144.74,5.54]
[1723730349604,33.11,144.85,144.76,33.11]
[1723730349813,5.05110102,144.84,144.78,33.11]
[1723730350009,1.2591,144.86,144.79,33.11]
[1723730350204,5.05217538,144.85,144.79,33.11]
[1723730350399,5.05256893,144.84,144.79,33.11]
[1723730350604,1.2591,144.86,144.78,33.11]
[1723730350811,5.05260456,144.85,144.78,33.11]
[1723730351013,5.09741146,144.84,144.81,0.05276143]
[1723730351209,0.04493605,144.84,144.81,3.50516143]
[1723730351610,0.04493605,144.84,144.81,0.05276143]
[1723730351812,0.04493605,144.84,144.82,3.4522]
[1723730352812,0.04493605,144.84,144.81,3.50526143]
[1723730353204,0.04493605,144.84,144.81,0.05276143]
[1723730353406,3.49693605,144.84,144.81,0.05276143]
[1723730354611,0.04493605,144.84,144.81,3.50526143]
[1723730354811,0.04493605,144.84,144.81,0.05276143]
[1723730355207,0.04493605,144.84,144.82,3.4522]
[1723730356727,0.04493605,144.84,144.81,0.05276143]
[1723730357213,3.4523,144.82,144.81,0.05276143]
[1723730358013,8.5053777,144.82,144.81,0.05276143]
[1723730361412,0.04493605,144.84,144.81,3.50516143]
[1723730361615,5.05299008,144.83,144.81,0.05276143]
[1723730361816,0.04493605,144.84,144.81,0.05276143]
[1723730362012,3.49693605,144.84,144.81,3.50526143]
[1723730362215,5.05254236,144.83,144.81,3.50526143]
[1723730362415,3.49693605,144.84,144.81,3.50526143]
[1723730362819,3.49693605,144.84,144.82,3.4523]
[1723730363220,0.04493605,144.84,144.82,3.4523]
[1723730363613,0.04493605,144.84,144.83,3.4521]
[1723730364221,0.04493605,144.84,144.83,6.96670534]
[1723730365113,0.04493605,144.84,144.83,3.4521]
[1723730365918,0.04493605,144.84,144.83,6.98620189]
[1723730366423,3.4507,144.89,144.86,3.4512]
[1723730366925,3.4511,144.88,144.81,34.3644]
[1723730367129,1.3515,144.9,144.81,34.3644]
[1723730367328,5.05015078,144.89,144.81,34.3644]
[1723730367618,0.05195717,144.87,144.85,3.4515]
[1723730368219,0.05195717,144.87,144.86,3.4514]
[1723730368618,0.05195717,144.87,144.84,0.05235612]
[1723730368820,0.05195717,144.87,144.85,3.4515]
[1723730369222,0.05195717,144.87,144.84,0.05235612]
[1723730369416,0.05195717,144.87,144.85,3.4516]
[1723730370612,0.05195717,144.87,144.86,3.4514]
[1723730371721,1.3479,144.93,144.84,5.57235612]
[1723730372024,5.04883439,144.92,144.85,33.11]
[1723730372222,3.4503,144.91,144.87,3.4509]
[1723730372422,1.3479,144.93,144.85,33.11]
[1723730372614,8.49911211,144.92,144.89,3.4506]
[1723730372812,3.4501,144.92,144.89,3.4506]
[1723730373221,0.04624144,144.9,144.89,3.4506]
[1723730373922,0.04624144,144.9,144.88,3.50046887]
[1723730374225,0.04624144,144.9,144.88,0.04966887]
[1723730376025,3.49684144,144.9,144.88,0.04966887]
[1723730376328,0.04624144,144.9,144.88,0.04966887]
[1723730377118,0.04624144,144.9,144.88,3.50046887]
[1723730377320,0.04624144,144.9,144.88,0.04966887]
[1723730378021,0.04624144,144.9,144.89,3.4507]
[1723730378822,0.04624144,144.9,144.88,0.04966887]
[1723730379021,3.4507,144.89,144.88,0.04966887]
[1723730381128,0.04624144,144.9,144.88,0.04966887]
[1723730381429,0.04624144,144.9,144.89,3.4507]
[1723730383032,1.2913,145.0,144.93,3.4497]
[1723730383222,5.04790654,144.96,144.93,3.4497]
[1723730383428,8.49694236,144.95,144.93,3.4497]
[1723730383627,3.4493,144.95,144.92,3.4499]
[1723730384132,3.4491,144.96,144.93,3.4497]
[1723730384429,0.04656797,144.95,144.93,3.4497]
[1723730385831,0.04656797,144.95,144.94,3.4495]
[1723730390033,0.04656797,144.95,144.92,33.15523819]
[1723730390034,0.04656797,144.95,144.92,0.04523819]
[1723730390533,0.04656797,144.95,144.93,3.4495]
[1723730390733,0.04656797,144.95,144.92,0.04523819]
[1723730390926,0.04656797,144.95,144.94,3.4495]
[1723730391826,0.04656797,144.95,144.94,36.5595]
[1723730392531,0.04656797,144.95,144.94,3.4495]
[1723730393935,0.04656797,144.95,144.92,0.04523819]
[1723730394434,0.04656797,144.95,144.94,3.4495]
[1723730395827,1.3153,145.02,144.93,33.11]
[1723730396033,3.4478,145.01,144.95,33.11]
[1723730396334,5.5,145.04,144.98,3.4483]
[1723730396533,36.58464642,145.05,144.96,33.11]
[1723730396737,33.11,145.05,144.96,33.11]
[1723730396936,33.11,145.05,144.98,3.4484]
[1723730397135,3.49236997,145.02,144.99,0.0516391]
[1723730397348,0.04456997,145.02,144.99,0.0516391]
[1723730397735,3.4478,145.01,144.99,0.0516391]
[1723730397935,0.04456997,145.02,144.99,3.4998391]
[1723730398139,3.49226997,145.02,144.99,3.4998391]
[1723730399440,3.49226997,145.02,144.99,0.0516391]
[1723730399951,3.4478,145.01,144.99,3.4997391]
[1723730400144,0.04456997,145.02,144.99,0.0516391]
[1723730400441,3.4481,145.0,144.99,0.0516391]
[1723730400642,0.04456997,145.02,144.99,0.0516391]
[1723730400942,3.448,145.01,144.99,0.0516391]
[1723730401131,0.04456997,145.02,144.99,0.0516391]
[1723730401636,3.4478,145.01,144.99,0.0516391]
[1723730402247,0.04456997,145.02,144.99,0.0516391]
[1723730402841,3.49226997,145.02,145.0,3.448]
[1723730403442,0.04456997,145.02,144.99,0.0516391]